[Event "Titled Tuesday Blitz August 24 2021"]
[White "Gubajdullin, Alexei"]
[Black "Zhigalko, Sergei"]
[WhiteFideId "4141202"]
[BlackFideId "13502956"]
[WhiteElo "2358"]
[BlackElo "2662"]
[Result "0-1"]
[Round "01"]
[TimeControl "180+1"]
[Date "2021.08.24"]
[WhiteClock "0:00:01"]
[BlackClock "0:00:03"]

1. d4 {[%clk 0:03:00]}  Nf6 {[%clk 0:02:59]} 2. Bf4 {[%clk 0:03:00]}  e6 {[%clk 0:02:59]} 3. e3 {[%clk 0:03:00]}  b6 {[%clk 0:02:58]} 4. Nf3 {[%clk 0:03:00]}  Bb7 {[%clk 0:02:58]} 5. Be2 {[%clk 0:03:00]}  d5 {[%clk 0:02:57]} 6. O-O {[%clk 0:03:00]}  Bd6 {[%clk 0:02:58]} 7. Ne5 {[%clk 0:03:00]}  O-O {[%clk 0:02:58]} 8. a4 {[%clk 0:03:00]}  c5 {[%clk 0:02:52]} 9. a5 {[%clk 0:02:59]}  bxa5 {[%clk 0:02:50]} 10. dxc5 {[%clk 0:02:56]}  Bxc5 {[%clk 0:02:50]} 11. Nd2 {[%clk 0:02:56]}  Nc6 {[%clk 0:02:44]} 12. Nb3 {[%clk 0:02:53]}  Bb6 {[%clk 0:02:45]} 13. Bb5 {[%clk 0:02:32]}  Rc8 {[%clk 0:02:29]} 14. Nxc6 {[%clk 0:02:22]}  Bxc6 {[%clk 0:02:29]} 15. Ba6 {[%clk 0:02:21]}  Ra8 {[%clk 0:02:27]} 16. Nd4 {[%clk 0:02:20]}  Qd7 {[%clk 0:02:20]} 17. Nxc6 {[%clk 0:02:18]}  Qxc6 {[%clk 0:02:21]} 18. Be5 {[%clk 0:02:13]}  Nd7 {[%clk 0:01:51]} 19. Bc3 {[%clk 0:02:11]}  Bxe3 {[%clk 0:01:35]} 20. Bd3 {[%clk 0:02:09]}  Bh6 {[%clk 0:01:11]} 21. Rxa5 {[%clk 0:02:04]}  g6 {[%clk 0:01:01]} 22. Bb5 {[%clk 0:01:47]}  Qc7 {[%clk 0:00:54]} 23. Qd4 {[%clk 0:01:45]}  f6 {[%clk 0:00:49]} 24. Qg4 {[%clk 0:01:32]}  f5 {[%clk 0:00:18]} 25. Qd4 {[%clk 0:01:31]}  Nf6 {[%clk 0:00:18]} 26. Ra6 {[%clk 0:01:25]}  Qf7 {[%clk 0:00:04]} 27. Re1 {[%clk 0:01:22]}  Bg7 {[%clk 0:00:04]} 28. Raxe6 {[%clk 0:01:16]}  Ne4 {[%clk 0:00:04]} 29. Qxg7+ {[%clk 0:01:11]}  Qxg7 {[%clk 0:00:04]} 30. Bxg7 {[%clk 0:01:11]}  Kxg7 {[%clk 0:00:05]} 31. Bc6 {[%clk 0:01:05]}  Rad8 {[%clk 0:00:04]} 32. Rd1 {[%clk 0:00:55]}  Nf6 {[%clk 0:00:03]} 33. Re5 {[%clk 0:00:30]}  d4 {[%clk 0:00:03]} 34. Ra5 {[%clk 0:00:29]}  Rf7 {[%clk 0:00:04]} 35. Rda1 {[%clk 0:00:27]}  Rd6 {[%clk 0:00:04]} 36. Bf3 {[%clk 0:00:17]}  Rb6 {[%clk 0:00:04]} 37. b3 {[%clk 0:00:15]}  d3 {[%clk 0:00:04]} 38. cxd3 {[%clk 0:00:15]}  Rxb3 {[%clk 0:00:05]} 39. d4 {[%clk 0:00:14]}  Rd3 {[%clk 0:00:03]} 40. d5 {[%clk 0:00:15]}  g5 {[%clk 0:00:03]} 41. h3 {[%clk 0:00:14]}  g4 {[%clk 0:00:03]} 42. hxg4 {[%clk 0:00:14]}  fxg4 {[%clk 0:00:04]} 43. Be2 {[%clk 0:00:13]}  Rd2 {[%clk 0:00:04]} 44. Bc4 {[%clk 0:00:11]}  Ne4 {[%clk 0:00:05]} 45. Rxa7 {[%clk 0:00:11]}  Nxf2 {[%clk 0:00:01]} 46. d6 {[%clk 0:00:10]}  Rxa7 {[%clk 0:00:01]} 47. Rxa7+ {[%clk 0:00:10]}  Kg6 {[%clk 0:00:01]} 48. d7 {[%clk 0:00:09]}  g3 {[%clk 0:00:01]} 49. Ra3 {[%clk 0:00:08]}  Rd1+ {[%clk 0:00:01]} 50. Bf1 {[%clk 0:00:08]}  Ne4 {[%clk 0:00:02]} 51. Re3 {[%clk 0:00:06]}  Nf6 {[%clk 0:00:02]} 52. Rxg3+ {[%clk 0:00:06]}  Kf7 {[%clk 0:00:02]} 53. Rf3 {[%clk 0:00:05]}  Rxd7 {[%clk 0:00:03]} 54. Kh2 {[%clk 0:00:05]}  Rd4 {[%clk 0:00:03]} 55. Bb5 {[%clk 0:00:05]}  Kg7 {[%clk 0:00:03]} 56. Rg3+ {[%clk 0:00:04]}  Kh6 {[%clk 0:00:03]} 57. Bd3 {[%clk 0:00:05]}  Ng4+ {[%clk 0:00:03]} 58. Kg1 {[%clk 0:00:04]}  Ne5 {[%clk 0:00:03]} 59. Be2 {[%clk 0:00:04]}  Ng6 {[%clk 0:00:03]} 60. Rh3+ {[%clk 0:00:04]}  Kg7 {[%clk 0:00:03]} 61. g3 {[%clk 0:00:04]}  Rd2 {[%clk 0:00:03]} 62. Kf2 {[%clk 0:00:04]}  Ne5 {[%clk 0:00:02]} 63. Ke3 {[%clk 0:00:04]}  Ra2 {[%clk 0:00:03]} 64. Rh4 {[%clk 0:00:03]}  Ra3+ {[%clk 0:00:03]} 65. Kf2 {[%clk 0:00:03]}  Ra2 {[%clk 0:00:03]} 66. Re4 {[%clk 0:00:03]}  Nd3+ {[%clk 0:00:02]} 67. Ke3 {[%clk 0:00:02]}  Nc5 {[%clk 0:00:03]} 68. Rg4+ {[%clk 0:00:02]}  Kf6 {[%clk 0:00:03]} 69. Rf4+ {[%clk 0:00:03]}  Ke5 {[%clk 0:00:03]} 70. Rh4 {[%clk 0:00:02]}  Ra3+ {[%clk 0:00:04]} 71. Kf2 {[%clk 0:00:02]}  Ne4+ {[%clk 0:00:04]} 72. Ke1 {[%clk 0:00:01]}  Ra1+ {[%clk 0:00:04]} 73. Bd1 {[%clk 0:00:02]}  Nc3 {[%clk 0:00:04]} 74. Rxh7 {[%clk 0:00:02]}  Rxd1+ {[%clk 0:00:04]} 75. Kf2 {[%clk 0:00:03]}  Ne4+ {[%clk 0:00:03]} 76. Kf3 {[%clk 0:00:02]}  Rd3+ {[%clk 0:00:04]} 77. Ke2 {[%clk 0:00:02]}  Ra3 {[%clk 0:00:04]} 78. Rh5+ {[%clk 0:00:02]}  Kd4 {[%clk 0:00:04]} 79. Rh8 {[%clk 0:00:02]}  Re3+ {[%clk 0:00:03]} 80. Kf1 {[%clk 0:00:02]}  Rxg3 {[%clk 0:00:03]} 81. Ke2 {[%clk 0:00:02]}  Re3+ {[%clk 0:00:03]} 82. Kf1 {[%clk 0:00:02]}  Ra3 {[%clk 0:00:03]} 83. Kg2 {[%clk 0:00:02]}  Ra2+ {[%clk 0:00:03]} 84. Kh3 {[%clk 0:00:02]}  Nf2+ {[%clk 0:00:02]} 85. Kg3 {[%clk 0:00:01]}  Ke3 {[%clk 0:00:02]} 86. Re8+ {[%clk 0:00:01]}  Ne4+ {[%clk 0:00:03]} 0-1


[Site "https://www.chess.com"]

[Event "Titled Tuesday Blitz August 24 2021"]
[White "Gubanov, Oleg"]
[Black "Molina, Roberto Junio Brito"]
[WhiteFideId "14115115"]
[BlackFideId "2109450"]
[WhiteElo "2138"]
[BlackElo "2402"]
[Result "0-1"]
[Round "01"]
[TimeControl "180+1"]
[Date "2021.08.24"]
[WhiteClock "0:00:12"]
[BlackClock "0:00:10"]

1. e4 {[%clk 0:02:59]}  c6 {[%clk 0:02:55]} 2. d4 {[%clk 0:02:57]}  d5 {[%clk 0:02:54]} 3. Nc3 {[%clk 0:02:58]}  dxe4 {[%clk 0:02:52]} 4. Nxe4 {[%clk 0:02:59]}  Nd7 {[%clk 0:02:51]} 5. Bc4 {[%clk 0:02:43]}  Ngf6 {[%clk 0:02:50]} 6. Ng5 {[%clk 0:02:43]}  e6 {[%clk 0:02:50]} 7. Ne2 {[%clk 0:02:31]}  h6 {[%clk 0:02:42]} 8. Nf3 {[%clk 0:02:30]}  Bd6 {[%clk 0:02:41]} 9. Bf4 {[%clk 0:02:24]}  Qc7 {[%clk 0:02:41]} 10. Bxd6 {[%clk 0:02:23]}  Qxd6 {[%clk 0:02:42]} 11. O-O {[%clk 0:02:20]}  O-O {[%clk 0:02:35]} 12. Qd2 {[%clk 0:02:17]}  b6 {[%clk 0:02:28]} 13. Rad1 {[%clk 0:02:15]}  Bb7 {[%clk 0:02:28]} 14. Rfe1 {[%clk 0:02:13]}  Rfd8 {[%clk 0:02:27]} 15. Ng3 {[%clk 0:02:12]}  Rac8 {[%clk 0:02:25]} 16. Qe2 {[%clk 0:02:00]}  c5 {[%clk 0:02:20]} 17. dxc5 {[%clk 0:01:51]}  Qxc5 {[%clk 0:02:21]} 18. Bd3 {[%clk 0:01:49]}  Bxf3 {[%clk 0:02:13]} 19. Qxf3 {[%clk 0:01:46]}  Ne5 {[%clk 0:02:10]} 20. Qe2 {[%clk 0:01:17]}  Nxd3 {[%clk 0:02:09]} 21. cxd3 {[%clk 0:01:18]}  Qd5 {[%clk 0:02:00]} 22. b3 {[%clk 0:01:12]}  Rc7 {[%clk 0:01:45]} 23. Ne4 {[%clk 0:01:08]}  Qd4 {[%clk 0:01:44]} 24. Nxf6+ {[%clk 0:01:05]}  Qxf6 {[%clk 0:01:44]} 25. Rd2 {[%clk 0:00:56]}  Rcd7 {[%clk 0:01:30]} 26. Red1 {[%clk 0:00:55]}  Qc3 {[%clk 0:01:29]} 27. h3 {[%clk 0:00:53]}  Qd4 {[%clk 0:01:24]} 28. Kh2 {[%clk 0:00:51]}  g6 {[%clk 0:01:21]} 29. Qf3 {[%clk 0:00:50]}  Kg7 {[%clk 0:01:19]} 30. Qe2 {[%clk 0:00:50]}  h5 {[%clk 0:01:15]} 31. f3 {[%clk 0:00:49]}  Qf4+ {[%clk 0:01:09]} 32. Kh1 {[%clk 0:00:48]}  Rd4 {[%clk 0:01:08]} 33. Rc2 {[%clk 0:00:44]}  R8d7 {[%clk 0:01:07]} 34. Rc8 {[%clk 0:00:40]}  Qf5 {[%clk 0:01:04]} 35. Qb2 {[%clk 0:00:40]}  e5 {[%clk 0:01:00]} 36. Re1 {[%clk 0:00:39]}  f6 {[%clk 0:00:54]} 37. Qa3 {[%clk 0:00:39]}  Rf7 {[%clk 0:00:48]} 38. Rec1 {[%clk 0:00:35]}  Qxd3 {[%clk 0:00:43]} 39. R8c7 {[%clk 0:00:34]}  Rdd7 {[%clk 0:00:42]} 40. Qxa7 {[%clk 0:00:30]}  Qd4 {[%clk 0:00:24]} 41. Rxd7 {[%clk 0:00:24]}  Rxd7 {[%clk 0:00:23]} 42. Qb8 {[%clk 0:00:24]}  h4 {[%clk 0:00:16]} 43. Rc7 {[%clk 0:00:22]}  Rxc7 {[%clk 0:00:11]} 44. Qxc7+ {[%clk 0:00:22]}  Kh6 {[%clk 0:00:12]} 45. Qc1+ {[%clk 0:00:21]}  g5 {[%clk 0:00:11]} 46. Qb1 {[%clk 0:00:18]}  Kg7 {[%clk 0:00:11]} 47. Qf5 {[%clk 0:00:18]}  Qd1+ {[%clk 0:00:11]} 48. Kh2 {[%clk 0:00:18]}  Qd6 {[%clk 0:00:12]} 49. Qc8 {[%clk 0:00:17]}  Kg6 {[%clk 0:00:11]} 50. Qg8+ {[%clk 0:00:17]}  Kf5 {[%clk 0:00:11]} 51. Qh7+ {[%clk 0:00:17]}  Ke6 {[%clk 0:00:11]} 52. Qg8+ {[%clk 0:00:17]}  Kd7 {[%clk 0:00:11]} 53. Qf7+ {[%clk 0:00:16]}  Kc6 {[%clk 0:00:12]} 54. Qc4+ {[%clk 0:00:16]}  Qc5 {[%clk 0:00:11]} 55. Qe6+ {[%clk 0:00:15]}  Qd6 {[%clk 0:00:11]} 56. Qc4+ {[%clk 0:00:15]}  Kb7 {[%clk 0:00:12]} 57. Qf7+ {[%clk 0:00:15]}  Ka6 {[%clk 0:00:13]} 58. Qc4+ {[%clk 0:00:16]}  b5 {[%clk 0:00:13]} 59. Qc8+ {[%clk 0:00:15]}  Kb6 {[%clk 0:00:14]} 60. Kh1 {[%clk 0:00:14]}  b4 {[%clk 0:00:14]} 61. Qc4 {[%clk 0:00:13]}  Qd1+ {[%clk 0:00:12]} 62. Kh2 {[%clk 0:00:13]}  Qd6 {[%clk 0:00:13]} 63. Qc8 {[%clk 0:00:12]}  e4+ {[%clk 0:00:11]} 64. Kg1 {[%clk 0:00:12]}  exf3 {[%clk 0:00:09]} 65. gxf3 {[%clk 0:00:12]}  Qc5+ {[%clk 0:00:10]} 66. Kg2 {[%clk 0:00:12]}  Qxc8 {[%clk 0:00:10]} 0-1


[Site "https://www.chess.com"]

[Event "Titled Tuesday Blitz August 24 2021"]
[White "Idani, Pouya"]
[Black "Adury, Anant"]
[WhiteFideId "12510130"]
[BlackFideId "30964687"]
[WhiteElo "2610"]
[BlackElo "2399"]
[Result "1-0"]
[Round "01"]
[TimeControl "180+1"]
[Date "2021.08.24"]
[WhiteClock "0:00:11"]
[BlackClock "0:01:28"]

1. e4 {[%clk 0:02:59]}  c5 {[%clk 0:02:53]} 2. Nf3 {[%clk 0:02:56]}  g6 {[%clk 0:02:50]} 3. c3 {[%clk 0:02:51]}  Bg7 {[%clk 0:02:50]} 4. d4 {[%clk 0:02:51]}  cxd4 {[%clk 0:02:51]} 5. cxd4 {[%clk 0:02:50]}  d5 {[%clk 0:02:52]} 6. exd5 {[%clk 0:02:47]}  Nf6 {[%clk 0:02:43]} 7. Nc3 {[%clk 0:02:47]}  Nxd5 {[%clk 0:02:42]} 8. Bc4 {[%clk 0:02:46]}  Nb6 {[%clk 0:02:42]} 9. Bb3 {[%clk 0:02:45]}  O-O {[%clk 0:02:43]} 10. h3 {[%clk 0:02:42]}  Nc6 {[%clk 0:02:42]} 11. Be3 {[%clk 0:02:42]}  Na5 {[%clk 0:02:40]} 12. O-O {[%clk 0:02:42]}  Nxb3 {[%clk 0:02:39]} 13. axb3 {[%clk 0:02:28]}  Nd5 {[%clk 0:02:38]} 14. Re1 {[%clk 0:01:59]}  Nxe3 {[%clk 0:02:29]} 15. fxe3 {[%clk 0:01:58]}  e5 {[%clk 0:02:30]} 16. d5 {[%clk 0:01:53]}  f5 {[%clk 0:02:21]} 17. e4 {[%clk 0:01:48]}  f4 {[%clk 0:02:20]} 18. Kh1 {[%clk 0:01:35]}  g5 {[%clk 0:02:20]} 19. Nh2 {[%clk 0:01:27]}  Qe8 {[%clk 0:02:19]} 20. d6 {[%clk 0:01:26]}  Bd7 {[%clk 0:02:16]} 21. Nd5 {[%clk 0:01:26]}  Rc8 {[%clk 0:02:13]} 22. Rxa7 {[%clk 0:01:23]}  h5 {[%clk 0:02:12]} 23. Ne7+ {[%clk 0:01:04]}  Kh8 {[%clk 0:02:09]} 24. Rxb7 {[%clk 0:00:59]}  Rd8 {[%clk 0:02:04]} 25. Rf1 {[%clk 0:00:47]}  g4 {[%clk 0:02:04]} 26. hxg4 {[%clk 0:00:47]}  hxg4 {[%clk 0:02:05]} 27. Rxd7 {[%clk 0:00:36]}  Rxd7 {[%clk 0:01:58]} 28. Qxg4 {[%clk 0:00:27]}  Rxd6 {[%clk 0:01:48]} 29. Nf5 {[%clk 0:00:27]}  Rd7 {[%clk 0:01:48]} 30. Rf3 {[%clk 0:00:24]}  Kg8 {[%clk 0:01:42]} 31. Rh3 {[%clk 0:00:15]}  Rd1+ {[%clk 0:01:40]} 32. Qxd1 {[%clk 0:00:14]}  Qg6 {[%clk 0:01:39]} 33. Qg4 {[%clk 0:00:14]}  Qf6 {[%clk 0:01:36]} 34. Nh6+ {[%clk 0:00:13]}  Kh8 {[%clk 0:01:34]} 35. Nf7+ {[%clk 0:00:12]}  Kg8 {[%clk 0:01:34]} 36. Ng5 {[%clk 0:00:12]}  Ra8 {[%clk 0:01:31]} 37. Nhf3 {[%clk 0:00:11]}  Kf8 {[%clk 0:01:27]} 38. Nh7+ {[%clk 0:00:10]}  Kf7 {[%clk 0:01:27]} 39. Nxf6 {[%clk 0:00:11]}  Bxf6 {[%clk 0:01:28]} 40. Rh7+ {[%clk 0:00:11]} 1-0


[Site "https://www.chess.com"]

[Event "Titled Tuesday Blitz August 24 2021"]
[White "Idrisov, Ildar F"]
[Black "Wieczorek, Oskar"]
[WhiteFideId "4151020"]
[BlackFideId "1133950"]
[WhiteElo "2209"]
[BlackElo "2258"]
[Result "0-1"]
[Round "01"]
[TimeControl "180+1"]
[Date "2021.08.24"]
[WhiteClock "0:00:05"]
[BlackClock "0:00:23"]

1. Nf3 {[%clk 0:03:00]}  d5 {[%clk 0:02:58]} 2. b3 {[%clk 0:03:00]}  Bg4 {[%clk 0:02:49]} 3. Bb2 {[%clk 0:02:59]}  Bxf3 {[%clk 0:02:47]} 4. exf3 {[%clk 0:02:58]}  e6 {[%clk 0:02:46]} 5. f4 {[%clk 0:02:58]}  Nf6 {[%clk 0:02:46]} 6. g3 {[%clk 0:02:58]}  g6 {[%clk 0:02:46]} 7. Bg2 {[%clk 0:02:57]}  Bg7 {[%clk 0:02:47]} 8. O-O {[%clk 0:02:56]}  O-O {[%clk 0:02:47]} 9. d3 {[%clk 0:02:56]}  c5 {[%clk 0:02:45]} 10. Nd2 {[%clk 0:02:56]}  Nc6 {[%clk 0:02:45]} 11. Nf3 {[%clk 0:02:55]}  Nh5 {[%clk 0:02:43]} 12. Bxg7 {[%clk 0:02:53]}  Nxg7 {[%clk 0:02:44]} 13. Ne5 {[%clk 0:02:51]}  Qc7 {[%clk 0:02:32]} 14. Nxc6 {[%clk 0:02:50]}  Qxc6 {[%clk 0:02:32]} 15. c4 {[%clk 0:02:49]}  Qd6 {[%clk 0:02:33]} 16. Qe2 {[%clk 0:02:47]}  Nf5 {[%clk 0:02:32]} 17. cxd5 {[%clk 0:02:39]}  exd5 {[%clk 0:02:33]} 18. Qe5 {[%clk 0:02:39]}  Rfd8 {[%clk 0:02:30]} 19. Rfe1 {[%clk 0:02:34]}  Rac8 {[%clk 0:02:23]} 20. Rac1 {[%clk 0:02:29]}  Nd4 {[%clk 0:02:16]} 21. Qxd6 {[%clk 0:02:22]}  Rxd6 {[%clk 0:02:15]} 22. Re7 {[%clk 0:02:22]}  Kf8 {[%clk 0:02:15]} 23. Rce1 {[%clk 0:02:18]}  Rb8 {[%clk 0:02:07]} 24. R7e5 {[%clk 0:02:09]}  Rbd8 {[%clk 0:01:57]} 25. Re7 {[%clk 0:02:07]}  Rb6 {[%clk 0:01:57]} 26. Rc7 {[%clk 0:02:02]}  Ne6 {[%clk 0:01:55]} 27. Rxe6 {[%clk 0:01:54]}  Rxe6 {[%clk 0:01:55]} 28. Rxb7 {[%clk 0:01:51]}  Re7 {[%clk 0:01:52]} 29. Rb5 {[%clk 0:01:48]}  Rc7 {[%clk 0:01:50]} 30. Bf1 {[%clk 0:01:36]}  Ke7 {[%clk 0:01:48]} 31. Kg2 {[%clk 0:01:35]}  Rd6 {[%clk 0:01:48]} 32. Kf3 {[%clk 0:01:34]}  Rb6 {[%clk 0:01:48]} 33. Ra5 {[%clk 0:01:33]}  Kd6 {[%clk 0:01:48]} 34. Be2 {[%clk 0:01:32]}  Re7 {[%clk 0:01:34]} 35. h4 {[%clk 0:01:28]}  Rc7 {[%clk 0:01:19]} 36. Ra4 {[%clk 0:01:27]}  a6 {[%clk 0:01:16]} 37. Ke3 {[%clk 0:01:26]}  Ra7 {[%clk 0:00:55]} 38. Kd2 {[%clk 0:01:22]}  a5 {[%clk 0:00:54]} 39. Bd1 {[%clk 0:01:05]}  Rb4 {[%clk 0:00:54]} 40. Ra3 {[%clk 0:01:05]}  Kc6 {[%clk 0:00:52]} 41. Kc3 {[%clk 0:01:04]}  Kb6 {[%clk 0:00:51]} 42. Kd2 {[%clk 0:01:02]}  Re7 {[%clk 0:00:43]} 43. Be2 {[%clk 0:00:59]}  a4 {[%clk 0:00:40]} 44. Bd1 {[%clk 0:00:55]}  axb3 {[%clk 0:00:39]} 45. axb3 {[%clk 0:00:48]}  Ra7 {[%clk 0:00:38]} 46. Rxa7 {[%clk 0:00:47]}  Kxa7 {[%clk 0:00:37]} 47. Bf3 {[%clk 0:00:47]}  Rd4 {[%clk 0:00:37]} 48. Kc3 {[%clk 0:00:44]}  Kb6 {[%clk 0:00:37]} 49. b4 {[%clk 0:00:45]}  Kc6 {[%clk 0:00:35]} 50. bxc5 {[%clk 0:00:44]}  Kxc5 {[%clk 0:00:36]} 51. Bd1 {[%clk 0:00:42]}  Rb4 {[%clk 0:00:35]} 52. Bf3 {[%clk 0:00:34]}  Ra4 {[%clk 0:00:34]} 53. Kb3 {[%clk 0:00:30]}  Ra7 {[%clk 0:00:34]} 54. Kc3 {[%clk 0:00:16]}  Ra3+ {[%clk 0:00:34]} 55. Kd2 {[%clk 0:00:16]}  Kd4 {[%clk 0:00:34]} 56. Ke2 {[%clk 0:00:16]}  Ra2+ {[%clk 0:00:33]} 57. Ke1 {[%clk 0:00:16]}  Rb2 {[%clk 0:00:32]} 58. h5 {[%clk 0:00:13]}  gxh5 {[%clk 0:00:27]} 59. Bxh5 {[%clk 0:00:12]}  Kxd3 {[%clk 0:00:24]} 60. Kf1 {[%clk 0:00:12]}  Rb1+ {[%clk 0:00:23]} 61. Kg2 {[%clk 0:00:11]}  Rb7 {[%clk 0:00:24]} 62. Kf3 {[%clk 0:00:10]}  d4 {[%clk 0:00:23]} 63. Bg4 {[%clk 0:00:10]}  Kc3 {[%clk 0:00:23]} 64. Bf5 {[%clk 0:00:09]}  Rd7 {[%clk 0:00:23]} 65. Ke2 {[%clk 0:00:07]}  Re7+ {[%clk 0:00:22]} 66. Kd1 {[%clk 0:00:07]}  h6 {[%clk 0:00:22]} 67. g4 {[%clk 0:00:06]}  d3 {[%clk 0:00:22]} 68. g5 {[%clk 0:00:05]}  hxg5 {[%clk 0:00:22]} 69. fxg5 {[%clk 0:00:05]}  d2 {[%clk 0:00:23]} 0-1


[Site "https://www.chess.com"]

[Event "Titled Tuesday Blitz August 24 2021"]
[White "Ilyasli, Ughur"]
[Black "Timmermans, Mark"]
[WhiteFideId "13416197"]
[BlackFideId "1026399"]
[WhiteElo "2051"]
[BlackElo "2460"]
[Result "0-1"]
[Round "01"]
[TimeControl "180+1"]
[Date "2021.08.24"]
[WhiteClock "0:00:06"]
[BlackClock "0:00:34"]

1. e4 {[%clk 0:03:00]}  Nf6 {[%clk 0:02:57]} 2. e5 {[%clk 0:03:00]}  Nd5 {[%clk 0:02:56]} 3. c4 {[%clk 0:03:01]}  Nb6 {[%clk 0:02:54]} 4. d4 {[%clk 0:03:02]}  d6 {[%clk 0:02:53]} 5. f4 {[%clk 0:03:02]}  g6 {[%clk 0:02:46]} 6. Nf3 {[%clk 0:03:02]}  Bg7 {[%clk 0:02:46]} 7. Nc3 {[%clk 0:03:01]}  O-O {[%clk 0:02:45]} 8. Be3 {[%clk 0:03:01]}  Bg4 {[%clk 0:02:37]} 9. Be2 {[%clk 0:03:00]}  N8d7 {[%clk 0:02:34]} 10. h3 {[%clk 0:02:56]}  Bxf3 {[%clk 0:02:34]} 11. Bxf3 {[%clk 0:02:56]}  Nxc4 {[%clk 0:02:33]} 12. Bf2 {[%clk 0:02:53]}  c6 {[%clk 0:02:29]} 13. h4 {[%clk 0:02:45]}  dxe5 {[%clk 0:02:17]} 14. fxe5 {[%clk 0:02:44]}  c5 {[%clk 0:02:17]} 15. h5 {[%clk 0:02:39]}  cxd4 {[%clk 0:02:17]} 16. hxg6 {[%clk 0:02:14]}  hxg6 {[%clk 0:02:18]} 17. Qxd4 {[%clk 0:01:46]}  Ndxe5 {[%clk 0:02:16]} 18. Qh4 {[%clk 0:01:46]}  Qd2+ {[%clk 0:01:49]} 19. Kf1 {[%clk 0:01:45]}  Rfd8 {[%clk 0:01:50]} 20. Bd5 {[%clk 0:01:10]}  Rxd5 {[%clk 0:01:31]} 21. Nxd5 {[%clk 0:01:00]}  Qxd5 {[%clk 0:01:31]} 22. Kg1 {[%clk 0:00:28]}  Nd2 {[%clk 0:01:23]} 23. Rh3 {[%clk 0:00:23]}  Ndf3+ {[%clk 0:01:15]} 24. gxf3 {[%clk 0:00:22]}  Nxf3+ {[%clk 0:01:16]} 25. Rxf3 {[%clk 0:00:22]}  Qxf3 {[%clk 0:01:17]} 26. Qxe7 {[%clk 0:00:22]}  Bxb2 {[%clk 0:01:16]} 27. Rb1 {[%clk 0:00:21]}  Qg4+ {[%clk 0:01:01]} 28. Kf1 {[%clk 0:00:20]}  Qh3+ {[%clk 0:00:55]} 29. Kg1 {[%clk 0:00:20]}  Qg4+ {[%clk 0:00:54]} 30. Kf1 {[%clk 0:00:20]}  Qc4+ {[%clk 0:00:51]} 31. Kg1 {[%clk 0:00:20]}  Qxa2 {[%clk 0:00:51]} 32. Rf1 {[%clk 0:00:17]}  Qd5 {[%clk 0:00:43]} 33. Rb1 {[%clk 0:00:16]}  Bd4 {[%clk 0:00:36]} 34. Rxb7 {[%clk 0:00:15]}  Bxf2+ {[%clk 0:00:31]} 35. Kxf2 {[%clk 0:00:16]}  a5 {[%clk 0:00:30]} 36. Rb6 {[%clk 0:00:03]}  Qd4+ {[%clk 0:00:28]} 37. Qe3 {[%clk 0:00:03]}  Qxe3+ {[%clk 0:00:28]} 38. Kxe3 {[%clk 0:00:03]}  a4 {[%clk 0:00:29]} 39. Rb2 {[%clk 0:00:03]}  a3 {[%clk 0:00:30]} 40. Ra2 {[%clk 0:00:04]}  Kg7 {[%clk 0:00:30]} 41. Kf4 {[%clk 0:00:05]}  f6 {[%clk 0:00:30]} 42. Kg4 {[%clk 0:00:05]}  Ra4+ {[%clk 0:00:31]} 43. Kg3 {[%clk 0:00:05]}  f5 {[%clk 0:00:32]} 44. Kf3 {[%clk 0:00:06]}  Kf6 {[%clk 0:00:32]} 45. Kg3 {[%clk 0:00:07]}  g5 {[%clk 0:00:33]} 46. Kf3 {[%clk 0:00:08]}  g4+ {[%clk 0:00:33]} 47. Kg3 {[%clk 0:00:09]}  Kg5 {[%clk 0:00:33]} 48. Kg2 {[%clk 0:00:09]}  f4 {[%clk 0:00:34]} 49. Kf2 {[%clk 0:00:10]}  Kh4 {[%clk 0:00:34]} 50. Kg2 {[%clk 0:00:09]}  f3+ {[%clk 0:00:33]} 51. Kh2 {[%clk 0:00:10]}  g3+ {[%clk 0:00:33]} 52. Kh1 {[%clk 0:00:10]}  Rb4 {[%clk 0:00:33]} 53. Ra1 {[%clk 0:00:10]}  a2 {[%clk 0:00:34]} 54. Rg1 {[%clk 0:00:08]}  Rb1 {[%clk 0:00:34]} 55. Rxb1 {[%clk 0:00:06]} 0-1


[Site "https://www.chess.com"]

[Event "Titled Tuesday Blitz August 24 2021"]
[White "Ivanchuk, Vasyl"]
[Black "Omariev, Maksim"]
[WhiteFideId "14100010"]
[BlackFideId "4193423"]
[WhiteElo "2710"]
[BlackElo "2421"]
[Result "1-0"]
[Round "01"]
[TimeControl "180+1"]
[Date "2021.08.24"]
[WhiteClock "0:01:24"]
[BlackClock "0:00:15"]

1. d4 {[%clk 0:03:00]}  h5 {[%clk 0:02:59]} 2. c4 {[%clk 0:03:00]}  h4 {[%clk 0:02:59]} 3. Nc3 {[%clk 0:03:00]}  d6 {[%clk 0:02:55]} 4. e4 {[%clk 0:03:00]}  e5 {[%clk 0:02:56]} 5. Nf3 {[%clk 0:02:57]}  Nc6 {[%clk 0:02:54]} 6. d5 {[%clk 0:02:50]}  Nce7 {[%clk 0:02:52]} 7. c5 {[%clk 0:02:49]}  Ng6 {[%clk 0:02:40]} 8. Bb5+ {[%clk 0:02:48]}  Bd7 {[%clk 0:02:37]} 9. Qb3 {[%clk 0:02:48]}  Rb8 {[%clk 0:02:16]} 10. Bxd7+ {[%clk 0:02:40]}  Qxd7 {[%clk 0:02:16]} 11. c6 {[%clk 0:02:40]}  Qc8 {[%clk 0:02:16]} 12. Qa4 {[%clk 0:02:39]}  b6 {[%clk 0:02:10]} 13. Qxa7 {[%clk 0:02:35]}  Ra8 {[%clk 0:02:07]} 14. Qb7 {[%clk 0:02:34]}  Qxb7 {[%clk 0:02:07]} 15. cxb7 {[%clk 0:02:34]}  Rb8 {[%clk 0:02:08]} 16. Ke2 {[%clk 0:02:23]}  Nf6 {[%clk 0:01:57]} 17. Be3 {[%clk 0:02:20]}  Be7 {[%clk 0:01:42]} 18. g3 {[%clk 0:02:12]}  Rxb7 {[%clk 0:01:36]} 19. Rhc1 {[%clk 0:02:10]}  Ng4 {[%clk 0:01:29]} 20. Bd2 {[%clk 0:02:09]}  hxg3 {[%clk 0:01:22]} 21. hxg3 {[%clk 0:02:09]}  Kd7 {[%clk 0:01:22]} 22. a4 {[%clk 0:02:02]}  Bd8 {[%clk 0:01:16]} 23. Rc2 {[%clk 0:01:56]}  Ne7 {[%clk 0:00:49]} 24. Ng5 {[%clk 0:01:50]}  Nc8 {[%clk 0:00:31]} 25. Nxf7 {[%clk 0:01:40]}  Rf8 {[%clk 0:00:30]} 26. Nxd8 {[%clk 0:01:37]}  Rxf2+ {[%clk 0:00:29]} 27. Ke1 {[%clk 0:01:37]}  Rxd2 {[%clk 0:00:21]} 28. Kxd2 {[%clk 0:01:32]}  Kxd8 {[%clk 0:00:19]} 29. Rh1 {[%clk 0:01:32]}  Nh6 {[%clk 0:00:15]} 30. b4 {[%clk 0:01:27]}  Ne7 {[%clk 0:00:15]} 31. Kd3 {[%clk 0:01:25]}  Neg8 {[%clk 0:00:15]} 32. Rf2 {[%clk 0:01:24]}  Nf6 {[%clk 0:00:15]} 33. Rxf6 {[%clk 0:01:24]} 1-0


[Site "https://www.chess.com"]